fUSD/lending_fUSD_20240616
["ID","MTS","AMOUNT","RATE_DAILY","PERIOD"]
[329686421,1718574634250,-430.14973657,0.00011732,2]
[329686423,1718574634263,-155.0,0.00011732,2]
[329686425,1718574634277,-410.0140434,0.00011733,2]
[329686427,1718574634291,-155.0,0.00011734,2]
[329686429,1718574634307,-9229.5095193,0.00011735,2]
[329686431,1718574634334,-395.4,0.00011739,2]
[329686432,1718574634358,-150.0,0.00011744,2]
[329686433,1718574634390,-19584.75610515,0.00011745,2]
[329686434,1718574634418,-150.0,0.00011753,2]
[329686435,1718574634431,-1036.606171,0.00011784,2]
[329686437,1718574634444,-499.99,0.00011787,2]
[329686439,1718574634472,-21323.44860708,0.000118,2]
[329686440,1718574634485,-203.0,0.00012919,2]
[329686441,1718574634516,-32685.9099028,0.0001298,2]
[329686442,1718574634532,-898.5362405,0.00013,2]
[329686443,1718574634566,-300.0,0.000137,5]
[329686444,1718574634580,-250.0,0.00013755,2]
[329686445,1718574634608,-600.0,0.000138,5]
[329686446,1718574634627,-219.83,0.0001389,2]
[329686447,1718574634664,-900.0,0.000139,5]
[329686448,1718574634677,-520.90786091,0.00013903,2]
[329686449,1718574634698,-2089.76923568,0.00013903,2]
[329686450,1718574634713,-317.24401791,0.00013903,2]
[329686451,1718574634737,-328.11515854,0.00013925,2]
[329686453,1718574634753,-174.49944535,0.00013925,2]
[329686456,1718574634772,-11812.94738997,0.00013925,2]
[329686457,1718574634787,-1388.57498872,0.00013925,2]
[329686459,1718574634809,-296.95413331,0.00013998,2]
[329686462,1718574634864,-209.63999371,0.00013998,2]
[329686464,1718574634878,-472.26794574,0.00013998,2]
[329686466,1718574634916,-892024.47410351,0.00014,2]
[329686469,1718574635706,200.0,0.00011694,30]
[329686470,1718574635771,200.0,0.00011694,30]
[329686471,1718574635833,203.90364543,0.00011694,30]
[329686472,1718574635890,200.0,0.00011694,30]
[329686480,1718574639311,-384.30158449,0.00014,2]
[329686481,1718574639331,-1093.29520675,0.00014,2]
[329686482,1718574639363,-4079.65127011,0.00014,2]
[329686483,1718574639554,-2125.34602237,0.00014,2]
[329686484,1718574639810,-25433.40261693,0.00014,2]
[329686485,1718574639823,-1559.97189616,0.00014,2]
[329686486,1718574640229,-2000.985,0.00014,2]
[329686487,1718574640243,-20159.24663963,0.00014,2]
[329686488,1718574640385,-330.345,0.00014,2]
[329686495,1718574643923,-12508.56552156,0.00014,2]
[329686496,1718574643939,-344.993,0.00014,2]
[329686497,1718574644363,-1229.58432961,0.00014,2]
[329686498,1718574644588,-2256.98786094,0.00014,2]
[329686499,1718574644604,-1088.85266392,0.00014,2]
[329686500,1718574644619,-2937.18616264,0.00014,2]
[329686501,1718574644633,-13115.16842701,0.00014,2]
[329686502,1718574646470,-209.22951034,0.00013999,2]
[329686503,1718574646501,-569.79139549,0.00013999,2]
[329686504,1718574646511,-1073.93899126,0.00014,2]
[329686505,1718574646524,-7832.292,0.00014,2]
[329686522,1718574647982,-171.89258737,0.00013903,2]
[329686523,1718574647993,-66638.97244124,0.00014,2]
[329686524,1718574648160,-1118.02440501,0.00014,2]
[329686525,1718574648344,-1595.25934319,0.00014,2]
[329686526,1718574648597,-633.40199947,0.00013999,2]
[329686527,1718574648608,-1716.59870739,0.00014,2]
[329686528,1718574648828,-3311.1720767,0.00013999,2]
[329686529,1718574649127,-572.85,0.00013999,2]
[329686530,1718574649158,-269.38241397,0.00013999,2]
[329686531,1718574649330,-1825.02164663,0.00013999,2]
[329686532,1718574649360,-493783.92916221,0.00014,2]
[329686533,1718574649408,-16994.01969472,0.00014,2]
[329686534,1718574649576,-386.15303988,0.00013999,2]
[329686535,1718574649589,-245.39793073,0.00014,2]
[329686536,1718574649620,-500.0,0.00014,2]
[329686537,1718574649634,-479.28866045,0.00014,2]
[329686798,1718574654509,-4640.72510408,0.00014,2]
[329686802,1718574654522,-7822.29012931,0.00014,2]
[329686822,1718574654984,-143408.84889733,0.00014,2]
[329687057,1718574658763,-461.30189036,0.00014,2]
[329687215,1718574674149,151.0,0.00024316,30]
[329687217,1718574729173,157.061706,0.000273,62]
[329687218,1718574730845,157.061706,0.000273,62]
[329687219,1718574731325,157.061706,0.000273,62]
[329687220,1718574732360,157.061706,0.000273,62]
[329687221,1718574732490,157.061706,0.000273,62]
[329687222,1718574732590,157.061706,0.000273,62]
[329687223,1718574733101,157.061706,0.000273,62]
[329687224,1718574733935,157.061706,0.000273,62]
[329687225,1718574733985,157.061706,0.000273,62]
[329687226,1718574734344,157.061706,0.000273,62]
[329687227,1718574744078,157.061706,0.000273,63]
[329687228,1718574744413,157.061706,0.000273,63]
[329687229,1718574744936,157.061706,0.000273,63]
[329687230,1718574745498,157.061706,0.000273,63]
[329687231,1718574745995,157.061706,0.000273,63]
[329687232,1718574746708,157.061706,0.000273,63]
[329687233,1718574747125,157.061706,0.000273,63]
[329687234,1718574747313,157.061706,0.000273,63]
[329687235,1718574747467,157.061706,0.000273,63]
[329687236,1718574747797,157.061706,0.000273,63]
[329687237,1718574752218,157.061706,0.000273,64]
[329687238,1718574753032,157.061706,0.000273,64]
[329687239,1718574753407,157.061706,0.000273,64]
[329687240,1718574753940,157.061706,0.000273,64]
[329687241,1718574754267,157.061706,0.000273,64]
[329687242,1718574754605,157.061706,0.000273,64]
[329687243,1718574755010,157.061706,0.000273,64]
[329687244,1718574755431,157.061706,0.000273,64]
[329687245,1718574756214,157.061706,0.000273,64]
[329687246,1718574756403,157.061706,0.000273,64]
[329687247,1718574780052,157.061706,0.000273,65]
[329687248,1718574781054,157.061706,0.000273,65]
[329687249,1718574781444,157.061706,0.000273,65]
[329687250,1718574781939,157.061706,0.000273,65]
[329687251,1718574782173,157.061706,0.000273,65]
[329687252,1718574782513,157.061706,0.000273,65]
[329687253,1718574782906,157.061706,0.000273,65]
[329687254,1718574783310,157.061706,0.000273,65]
[329687255,1718574783759,157.061706,0.000273,65]
[329687256,1718574784179,157.061706,0.000273,65]
[329687257,1718574788696,157.061706,0.000273,66]
[329687258,1718574789667,157.061706,0.000273,66]
[329687259,1718574790074,157.061706,0.000273,66]
[329687260,1718574790457,157.061706,0.000273,66]
[329687261,1718574790838,157.061706,0.000273,66]
[329687262,1718574791291,157.061706,0.000273,66]
[329687263,1718574792699,157.061706,0.000273,66]
[329687264,1718574792946,157.061706,0.000273,66]
[329687265,1718574793084,157.061706,0.000273,66]
[329687266,1718574793175,157.061706,0.000273,66]
[329687267,1718574804966,157.061706,0.000273,69]
[329687268,1718574805783,157.061706,0.000273,69]
[329687269,1718574806595,157.061706,0.000273,69]
[329687270,1718574806829,157.061706,0.000273,69]
[329687271,1718574807165,157.061706,0.000273,69]
[329687272,1718574807705,157.061706,0.000273,69]
[329687273,1718574807991,157.061706,0.000273,69]
[329687274,1718574808437,157.061706,0.000273,69]
[329687275,1718574808919,157.061706,0.000273,69]
[329687276,1718574809311,157.061706,0.000273,69]
[329687277,1718574813836,157.061706,0.000273,70]
[329687278,1718574814679,157.061706,0.000273,70]
[329687279,1718574815134,157.061706,0.000273,70]
[329687280,1718574815560,157.061706,0.000273,70]
[329687281,1718574815948,157.061706,0.000273,70]
[329687282,1718574816376,157.061706,0.000273,70]
[329687283,1718574816801,157.061706,0.000273,70]
[329687284,1718574817171,157.061706,0.000273,70]
[329687285,1718574817575,157.061706,0.000273,70]
[329687286,1718574818033,157.061706,0.000273,70]
[329687287,1718574822717,157.061706,0.000273,71]
[329687288,1718574823612,157.061706,0.000273,71]
[329687289,1718574823775,157.061706,0.000273,71]
[329687290,1718574824265,157.061706,0.000273,71]
[329687291,1718574824651,157.061706,0.000273,71]
[329687292,1718574825101,157.061706,0.000273,71]
[329687293,1718574825523,157.061706,0.000273,71]
[329687294,1718574825985,157.061706,0.000273,71]
[329687295,1718574826324,157.061706,0.000273,71]
[329687296,1718574826826,157.061706,0.000273,71]
[329687297,1718574871140,157.061706,0.000273,72]
[329687298,1718574872003,157.061706,0.000273,72]
[329687299,1718574872512,157.061706,0.000273,72]
[329687300,1718574873059,157.061706,0.000273,72]
[329687301,1718574873605,157.061706,0.000273,72]
[329687302,1718574874159,157.061706,0.000273,72]
[329687303,1718574880269,157.061706,0.000273,72]
[329687304,1718574902499,151.061706,0.000273,72]
[329687305,1718574926299,152.061706,0.000273,72]
[329687306,1718575141853,169.7,0.00010458,2]
[329687307,1718575198514,948.58301108,0.00010458,2]
[329687308,1718575202835,958.58113052,9.935e-05,2]
[329687309,1718575216527,947.71950495,0.00010458,2]
[329687310,1718575220901,413.02949064,9.935e-05,2]
[329687311,1718575256956,155.0,9.935e-05,2]
[329687312,1718575258198,20286.29635735,9.935e-05,2]
[329687313,1718575263836,4904.6859371,9.935e-05,2]
[329687314,1718575263881,12725.55892973,9.935e-05,2]
[329687315,1718575263922,381018.05348965,9.935e-05,2]
[329687316,1718575263963,10000.0,9.935e-05,2]
[329687317,1718575263999,10000.0,9.935e-05,2]
[329687318,1718575264062,10000.0,9.935e-05,2]
[329687319,1718575264111,10000.0,9.935e-05,2]
[329687320,1718575264189,10000.0,9.935e-05,2]
[329687321,1718575264259,10000.0,9.935e-05,2]
[329687322,1718575264320,10000.0,9.935e-05,2]
[329687323,1718575264398,3279.0,9.935e-05,2]
[329687324,1718575264441,40001.0,9.935e-05,2]
[329687325,1718575264486,36395.07943488,9.935e-05,2]
[329687326,1718575276984,155.0,9.935e-05,2]
[329687327,1718575280264,162.63655556,9.935e-05,2]
[329687328,1718575280295,162.63655556,9.935e-05,2]
[329687329,1718575280341,162.63655556,9.935e-05,2]
[329687330,1718575280373,162.63655556,9.935e-05,2]
[329687331,1718575280402,162.63655556,9.935e-05,2]
[329687332,1718575280437,162.63655556,9.935e-05,2]
[329687333,1718575280505,162.63655556,9.935e-05,2]
[329687334,1718575280549,162.63655556,9.935e-05,2]
[329687335,1718575280592,162.63655556,9.935e-05,2]
[329687336,1718575280646,162.63655556,9.935e-05,2]
[329687337,1718575280683,162.63655556,9.935e-05,2]
[329687338,1718575280741,162.63655556,9.935e-05,2]
[329687339,1718575280806,162.63655556,9.935e-05,2]
[329687340,1718575280856,162.63655556,9.935e-05,2]
[329687341,1718575280901,162.63655556,9.935e-05,2]
[329687342,1718575280935,162.63655556,9.935e-05,2]
[329687343,1718575280995,162.63655556,9.935e-05,2]
[329687344,1718575281019,162.63655556,9.935e-05,2]
[329687345,1718575281053,162.63655556,9.935e-05,2]
[329687346,1718575281094,162.63655556,9.935e-05,2]
[329687347,1718575281130,162.63655556,9.935e-05,2]
[329687348,1718575281167,162.63655556,9.935e-05,2]
[329687349,1718575281202,162.63655556,9.935e-05,2]
[329687350,1718575281243,162.63655556,9.935e-05,2]
[329687351,1718575281271,162.63655556,9.935e-05,2]
[329687352,1718575281314,162.63655556,9.935e-05,2]
[329687353,1718575281356,162.63655556,9.935e-05,2]
[329687354,1718575281397,162.63655556,9.935e-05,2]
[329687355,1718575281452,162.63655556,9.935e-05,2]
[329687356,1718575281503,162.63655556,9.935e-05,2]
[329687357,1718575281531,162.63655556,9.935e-05,2]
[329687358,1718575281564,162.63655556,9.935e-05,2]
[329687359,1718575281596,3528.49116625,9.935e-05,2]
[329687360,1718575284497,162.63655556,9.935e-05,2]
[329687361,1718575284553,162.63655556,9.935e-05,2]
[329687362,1718575284596,162.63655556,9.935e-05,2]
[329687363,1718575284666,162.63655556,9.935e-05,2]
[329687364,1718575284733,162.63655556,9.935e-05,2]
[329687365,1718575284790,162.63655556,9.935e-05,2]
[329687366,1718575284832,162.63655556,9.935e-05,2]
[329687367,1718575284868,162.63655556,9.935e-05,2]
[329687368,1718575284905,162.63655556,9.935e-05,2]
[329687369,1718575285174,162.63655556,9.935e-05,2]
[329687370,1718575285225,162.63655556,9.935e-05,2]
[329687371,1718575285261,162.63655556,9.935e-05,2]
[329687372,1718575285300,162.63655556,9.935e-05,2]
[329687373,1718575285340,162.63655556,9.935e-05,2]
[329687374,1718575285407,162.63655556,9.935e-05,2]
[329687375,1718575285436,162.63655516,9.935e-05,2]
[329687376,1718575285466,162.63655556,9.935e-05,2]
[329687377,1718575285509,12953.49927014,9.935e-05,2]
[329687378,1718575300911,150.0,9.935e-05,2]
[329687379,1718575300952,87.30329717,9.935e-05,2]
[329687380,1718575303884,26422.93012873,9.935e-05,2]
[329687381,1718575303917,10000.0,9.935e-05,2]
[329687382,1718575304649,-150.0,9.935e-05,2]
[329687383,1718575304870,-150.0,9.935e-05,2]
[329687384,1718575304924,-150.0,9.935e-05,2]
[329687385,1718575305008,-150.0,9.935e-05,2]
[329687386,1718575305075,-150.0,9.935e-05,2]
[329687387,1718575305179,-150.0,9.935e-05,2]
[329687388,1718575305267,-150.0,9.935e-05,2]
[329687389,1718575305314,-150.0,9.935e-05,2]
[329687390,1718575305384,-150.0,9.935e-05,2]
[329687391,1718575305469,-150.0,9.935e-05,2]
[329687392,1718575305594,-150.0,9.935e-05,2]
[329687393,1718575305652,-150.0,9.935e-05,2]
[329687394,1718575305707,-150.0,9.935e-05,2]
[329687395,1718575305772,-150.0,9.935e-05,2]
[329687396,1718575305841,-150.0,9.935e-05,2]
[329687397,1718575305903,-150.0,9.935e-05,2]
[329687398,1718575305965,-150.0,9.935e-05,2]
[329687399,1718575306012,-150.0,9.935e-05,2]
[329687400,1718575306115,-150.0,9.935e-05,2]
[329687401,1718575306182,-150.0,9.935e-05,2]
[329687402,1718575306265,-150.0,9.935e-05,2]
[329687403,1718575306384,-150.0,9.935e-05,2]
[329687404,1718575306509,-150.0,9.935e-05,2]
[329687405,1718575306644,-150.0,9.935e-05,2]
[329687406,1718575306714,-150.0,9.935e-05,2]
[329687407,1718575306772,-150.0,9.935e-05,2]
[329687408,1718575306842,-150.0,9.935e-05,2]
[329687409,1718575306910,-150.0,9.935e-05,2]
[329687410,1718575306998,-85.14382277,9.935e-05,2]
[329687411,1718575307046,-64.85617723,9.935e-05,2]
[329687412,1718575307102,-150.0,9.935e-05,2]
[329687413,1718575307195,-129.0374931,9.935e-05,2]
[329687414,1718575308251,20.9625069,0.0001,2]
[329687415,1718575308290,150.0,0.0001,2]
[329687416,1718575308357,129.01070301,0.0001,2]
[329687417,1718575311033,150.0,9.934e-05,2]
[329687418,1718575311071,260.0140434,9.934e-05,2]
[329687419,1718575704210,169.71,8.981e-05,2]
[329687420,1718575751183,-1303.77297521,9.724e-05,2]
[329687421,1718575751231,-424.69537084,9.725e-05,2]
[329687422,1718575751264,-1186.69335395,9.726e-05,2]
[329687423,1718575769348,424.00540404,8.939e-05,2]
[329687424,1718575801956,363.26147488,8.939e-05,2]
[329687425,1718575802523,150.0,8.939e-05,2]
[329687426,1718575802767,150.0,8.939e-05,2]
[329687427,1718575802924,150.0,8.939e-05,2]
[329687428,1718575802960,3.83714454,8.939e-05,2]
[329687429,1718575815872,146.16285546,8.939e-05,2]
[329687430,1718575815910,150.0,8.939e-05,2]
[329687431,1718575815960,3.65886156,8.939e-05,2]
[329687432,1718575824409,146.34113844,8.939e-05,2]
[329687433,1718575824461,150.0,8.939e-05,2]
[329687434,1718575824513,150.0,8.939e-05,2]
[329687435,1718575824562,186.77073438,8.939e-05,2]
[329687436,1718575824605,2966.88812718,8.939e-05,2]
[329687452,1718575832920,-254.0,9.338e-05,2]
[329687453,1718575832934,-23.321,9.34e-05,2]
[329687454,1718575833243,-752.629,9.34e-05,2]
[329687455,1718575833280,-570.3404531,9.435e-05,2]
[329687456,1718575833687,-721.90820529,9.435e-05,2]
[329687457,1718575833701,-2799.73339905,9.726e-05,2]
[329687458,1718575833715,-543.38783253,9.932e-05,2]
[329687459,1718575833745,-150.0,9.933e-05,2]
[329687460,1718575833792,-300.0,9.933e-05,2]
[329687461,1718575833819,-12023.08486313,9.934e-05,2]
[329687462,1718575833848,-3392.93525302,9.934e-05,2]
[329687463,1718575833868,-202.42595094,9.935e-05,2]
[329687464,1718575833896,-252.28960573,9.935e-05,2]
[329687465,1718575833964,-419.30440703,0.0001,2]
[329687466,1718575833977,-253.66365417,0.0001,2]
[329687467,1718575834040,-1000.0,0.00010457,2]
[329687468,1718575834070,-150.99,0.00010457,2]
[329687469,1718575834144,-691.61,0.00010922,2]
[329687470,1718575834156,-9625.2,0.00010922,2]
[329687471,1718575834224,-1457.89657756,0.00010922,2]
[329687472,1718575834288,-8542.09342244,0.00010922,2]
[329687473,1718575834344,-150.99,0.00010922,2]
[329687474,1718575834373,-999.99,0.00010922,2]
[329687475,1718575834403,-499.99,0.00010922,2]
[329687476,1718575834427,-210.0,0.00010926,2]
[329687477,1718575834452,-420.0,0.00010926,2]
[329687478,1718575834484,-45.79025392,0.00010959,2]
[329687479,1718575834557,-160.25974608,0.00010959,2]
[329687480,1718575834581,-3386.47424068,0.0001114,2]
[329687481,1718575834606,-589.32843621,0.00011142,2]
[329687482,1718575834637,-23900.0,0.00011277,2]
[329687483,1718575834648,-150.0,0.00011286,2]
[329687484,1718575834680,-250.0,0.00011303,2]
[329687485,1718575834724,-250.0,0.0001133,2]
[329687486,1718575834748,-150.0,0.00011384,2]
[329687487,1718575834760,-775.95,0.00011603,2]
[329687488,1718575834800,-177.63,0.00011775,2]
[329687489,1718575834813,-2445.45,0.00011907,2]
[329687490,1718575834825,-1000.0,0.00011937,2]
[329687491,1718575834845,-293.0,0.00012019,2]
[329687492,1718575834856,-587.0,0.00012019,2]
[329687493,1718575834874,-184.83,0.00012215,2]
[329687494,1718575834906,-184.83,0.00012248,2]
[329687495,1718575834928,-200.0,0.00012256,2]
[329687496,1718575834944,-16083.9,0.00012256,2]
[329687497,1718575834968,-184.83,0.00012282,2]
[329687498,1718575834980,-969.89,0.00012295,2]
[329687499,1718575835008,-184.83,0.00012315,2]
[329687500,1718575835037,-184.83,0.00012349,2]
[329687501,1718575835049,-184.83,0.00012382,2]
[329687502,1718575835060,-184.83,0.00012416,2]
[329687503,1718575835072,-184.83,0.00012449,2]
[329687504,1718575835084,-184.83,0.00012483,2]
[329687505,1718575835096,-184.83,0.00012516,2]
[329687506,1718575835121,-184.83,0.0001255,2]
[329687507,1718575835133,-184.83,0.00012583,2]
[329687508,1718575835149,-184.83,0.00012617,2]
[329687509,1718575835194,-184.83,0.0001265,2]
[329687510,1718575835228,-184.83,0.00012684,2]
[329687511,1718575835266,-184.83,0.00012717,2]
[329687512,1718575835313,-200.0,0.0001273,2]
[329687513,1718575835324,-184.83,0.00012751,2]
[329687514,1718575835335,-184.83,0.00012784,2]
[329687515,1718575835353,-466.44,0.00012785,2]
[329687516,1718575835366,-841.83,0.00012809,2]
[329687517,1718575835395,-184.83,0.00012818,2]
[329687518,1718575835417,-184.83,0.00012851,2]
[329687519,1718575835435,-1890.54,0.00012857,2]
[329687520,1718575835457,-121204.1064,0.00012893,2]
[329687521,1718575835488,-65107.7622,0.00012893,2]
[329687522,1718575835507,-322.27155832,0.00012893,2]
[329687523,1718575835519,-189.92070065,0.00012983,2]
[329687524,1718575835538,-32956.63108679,0.00012993,2]
[329687531,1718575840403,450.0,8.939e-05,2]
[329687634,1718575857714,-366.51882957,0.00012993,2]
[329687635,1718575857741,-2591.71049796,0.00012993,2]
[329687636,1718575857762,-1171.97796576,0.00012993,2]
[329687637,1718575857782,-250.40672508,0.00012993,2]
[329687642,1718575857909,-467.72521274,0.00012993,2]
[329687643,1718575857922,-879.425,0.00012993,2]
[329687644,1718575857959,-3282.4495956,0.00012993,2]
[329687645,1718575857976,-665.45,0.00012993,2]
[329687646,1718575858017,-3800.98947528,0.00012993,2]
[329687647,1718575858030,-6016.84549226,0.00012993,2]
[329687648,1718575858045,-2000.0,0.00012993,2]
[329687649,1718575858059,-3385.95,0.00012993,2]
[329687661,1718575858316,-397.00005046,0.00012993,2]
[329687665,1718575858362,-21399.14938354,0.00012993,2]
[329687668,1718575858437,-38561.89665974,0.00012993,2]
[329687669,1718575858454,-317032.89510586,0.00012993,2]
[329687670,1718575858465,-10427.67875822,0.00012994,2]
[329687671,1718575858479,-6459.0,0.00013037,2]
[329687672,1718575858494,-339.91,0.00013041,2]
[329687673,1718575858509,-163.4,0.00013051,2]
[329687674,1718575858520,-224.99,0.00013051,2]
[329687675,1718575858541,-1729.4,0.00013051,2]
[329687676,1718575858551,-283.0,0.00013221,2]
[329687677,1718575858570,-1000.0,0.00013429,2]
[329687678,1718575858584,-200.0,0.00013699,2]
[329687679,1718575858602,-1450.56,0.00013699,2]
[329687680,1718575858619,-1206.2,0.00013699,2]
[329687681,1718575858657,-500.0,0.00013699,2]
[329687682,1718575858681,-383.54295739,0.00013724,2]
[329687683,1718575858692,-414.78530048,0.00013759,2]
[329687684,1718575858711,-701.1076,0.00013794,2]
[329687685,1718575858730,-775.95,0.00013867,2]
[329687686,1718575858747,-219.83,0.0001389,2]
[329687687,1718575858760,-228.06771786,0.000139,2]
[329687688,1718575858777,-525.0879318,0.000139,2]
[329687689,1718575858791,-800.0,0.000139,5]
[329687690,1718575858809,-627.57006573,0.000139,2]
[329687691,1718575858833,-12600.11494523,0.000139,2]
[329687692,1718575858860,-328.18832267,0.00013998,2]
[329687693,1718575858878,-150.99,0.00013999,2]
[329687694,1718575858897,-1204.87,0.00013999,2]
[329687695,1718575858913,-338822.21213743,0.00014,2]
[329687696,1718575858949,-3000.0,0.00014,2]
[329687697,1718575858966,-1665.44,0.00014058,2]
[329687698,1718575858978,-1665.44,0.00014062,2]
[329687699,1718575858998,-1665.44,0.00014065,2]
[329687700,1718575859015,-1665.44,0.00014069,2]
[329687701,1718575859043,-1665.44,0.00014073,2]
[329687702,1718575859057,-1665.44,0.00014076,2]
[329687703,1718575859075,-1665.44,0.0001408,2]
[329687704,1718575859088,-1665.44,0.00014084,2]
[329687705,1718575859099,-1665.44,0.00014088,2]
[329687706,1718575859114,-1665.44,0.00014091,2]
[329687707,1718575859156,-1665.44,0.00014095,2]
[329687708,1718575859169,-1665.44,0.00014099,2]
[329687709,1718575859185,-1665.44,0.00014102,2]
[329687710,1718575859218,-1665.44,0.00014106,2]
[329687711,1718575859231,-1665.44,0.0001411,2]
[329687712,1718575859253,-1665.44,0.00014113,2]
[329687713,1718575859280,-1665.44,0.00014117,2]
[329687714,1718575859291,-1665.44,0.00014121,2]
[329687716,1718575859344,-1665.44,0.00014125,2]
[329687718,1718575859369,-1665.44,0.00014128,2]
[329687720,1718575859391,-172.953421,0.00014247,2]
[329687721,1718575859419,-172.31,0.00014372,2]
[329687722,1718575859433,-219.83,0.00014904,3]
[329687723,1718575859462,-1000.0,0.00014921,2]
[329687724,1718575859476,-3961.30745125,0.00015,2]
[329687725,1718575859487,-172.953421,0.00015068,2]
[329687726,1718575859500,-12600.11494521,0.00015127,2]
[329687727,1718575859520,-163.4,0.00015226,2]
[329687728,1718575859556,-322.27155828,0.00015311,2]
[329687729,1718575859581,-5333.06688183,0.00015777,2]
[329687730,1718575859629,-365.0,0.00015777,2]
[329687732,1718575859648,-760.93311817,0.00015777,2]
[329687733,1718575859665,-154.67833718,0.0001579,2]
[329687734,1718575860039,-19.82110817,0.0001579,2]
[329687735,1718575860064,-219.83,0.0001589,4]
[329687736,1718575860118,-107.49918166,0.0001589,2]
[329687737,1718575860307,-65.45423934,0.0001589,2]
[329687738,1718575860322,-775.95,0.00016131,2]
[329687739,1718575860333,-304.95701766,0.0001632,2]
[329687740,1718575860347,-12600.11494521,0.00016355,2]
[329687741,1718575860359,-1000.0,0.00016413,2]
[329687742,1718575860373,-1336.19,0.00016438,2]
[329687743,1718575860397,-172.953421,0.00016712,2]
[329687744,1718575860411,-219.83,0.00016904,5]
[329687745,1718575860423,-627.57006571,0.00017249,2]
[329687746,1718575860444,-163.4,0.00017401,2]
[329687747,1718575860456,-172.31,0.00017422,2]
[329687748,1718575860485,-172.953421,0.00017534,2]
[329687749,1718575860500,-12600.11494521,0.00017582,2]
[329687750,1718575860512,-322.27155828,0.00017729,2]
[329687751,1718575860532,-173.97,0.0001789,6]
[329687752,1718575860548,-1000.0,0.00017905,2]
[329687753,1718575860562,-304.9570176,0.00018167,2]
[329687754,1718575860573,-245.69,0.00018183,2]
[329687755,1718575860584,-196.92,0.00018387,2]
[329687756,1718575860617,-775.95,0.00018395,2]
[329687757,1718575860640,-168.13,0.00018496,2]
[329687758,1718575860654,-6459.0,0.00018516,2]
[329687759,1718575860666,-12600.11494521,0.00018809,2]
[329687760,1718575860677,-3000.0,0.00019,2]
[329687761,1718575860700,-245.69,0.00019092,2]
[329687762,1718575860713,-500.0,0.00019178,2]
[329687763,1718575860731,-500.0,0.00019178,2]
[329687764,1718575860757,-500.0,0.00019178,2]
[329687765,1718575860768,-518.12955381,0.00019178,2]
[329687766,1718575860798,-500.0,0.00019178,2]
[329687767,1718575860826,-500.0,0.00019178,2]
[329687768,1718575860837,-350.0,0.00019178,2]
[329687769,1718575860848,-1206.2,0.00019178,2]
[329687770,1718575860859,-1500.0,0.00019178,5]
[329687771,1718575860870,-163.4,0.00019576,2]
[329687772,1718575860891,-230.11980446,0.000199,2]
[329687773,1718575860907,-230.11980444,0.000199,2]
[329687774,1718575860924,-230.11980444,0.000199,2]
[329687775,1718575860936,-201.27922678,0.0002,2]
[329687776,1718575860952,-18942.48506065,0.0002,2]
[329687777,1718575860969,-245.69,0.00020001,2]
[329687778,1718575860991,-304.9570176,0.00020013,2]
[329687779,1718575861010,-12600.11494521,0.00020036,2]
[329687780,1718575861021,-430.9459347,0.0002005,2]
[329687781,1718575861035,-226.81877563,0.000201,2]
[329687782,1718575861046,-322.27155828,0.00020147,2]
[329687783,1718575861058,-155.21140818,0.00020546,2]
[329687784,1718575861100,-20016.73,0.00020548,2]
[329687785,1718575861134,-627.57006571,0.00020599,2]
[329687786,1718575861196,-775.95,0.00020659,2]
[329687787,1718575861214,-1700.0,0.000209,7]